bitfinex/quotes_ETHUSD_20250827
["timestamp","ask_amount","ask_price","bid_price","bid_amount"]
[1756309592361,1e-08,4652.8,4652.7,11.50982992]
[1756309592566,0.00120001,4653.3,4653.2,2.14905871]
[1756309592732,0.00120001,4653.3,4653.2,5.94954929]
[1756309593062,0.00120001,4653.3,4653.2,9.69525871]
[1756309593460,1e-08,4653.3,4653.2,9.69525871]
[1756309594460,1e-08,4653.3,4653.2,5.91625871]
[1756309594759,1e-08,4653.3,4653.2,10.50179751]
[1756309595626,0.002,4654.3,4654.2,2.14859696]
[1756309595833,0.002,4654.3,4654.2,5.92659696]
[1756309596328,0.002,4654.3,4654.2,6.03379696]
[1756309597030,0.002,4654.3,4654.2,9.03379696]
[1756309597360,0.002,4654.3,4654.2,9.42770592]
[1756309599866,0.002,4654.3,4654.2,10.08770592]
[1756309600966,0.1072,4655.5,4654.7,2.14836616]
[1756309601163,0.1072,4655.5,4654.7,5.92536616]
[1756309601465,0.1072,4655.5,4654.7,6.03256616]
[1756309604161,0.1072,4655.5,4654.7,6.03056616]
[1756309605441,1.653,4655.9,4654.7,5.92336616]
[1756309605641,0.1072,4655.2,4654.7,5.92336616]
[1756309606749,0.1072,4655.2,4654.7,2.14836616]
[1756309606950,0.1072,4655.2,4654.7,5.92236616]
[1756309608450,1.653,4655.9,4654.7,5.92236616]
[1756309608654,0.33628936,4655.4,4654.7,5.92236616]
[1756309610377,0.1072,4655.5,4654.7,9.74016629]
[1756309611407,0.1072,4655.5,4654.7,8.92136616]
[1756309612506,0.33776138,4656.1,4654.7,8.92136616]
[1756309612712,0.1072,4655.7,4654.7,8.92136616]
[1756309613867,0.1072,4655.7,4654.7,9.58136616]
[1756309614504,0.33776138,4656.1,4654.7,9.58136616]
[1756309614701,0.44496138,4656.1,4654.7,9.58136616]
[1756309614890,0.33776138,4656.1,4654.7,8.92036616]
[1756309615205,0.1072,4655.9,4654.7,9.68756616]
[1756309615902,0.0014916,4656.1,4654.7,9.68756616]
[1756309616206,0.1086916,4656.1,4654.7,9.68756616]
[1756309616402,0.20050286,4656.0,4654.7,9.68756616]
[1756309616769,0.0212,4654.8,4654.7,9.68756616]
[1756309616974,1e-08,4654.8,4654.7,10.87116629]
[1756309619423,1e-08,4654.8,4654.7,7.09916629]
[1756309619709,1e-08,4654.8,4654.7,10.87016629]
[1756309620306,1e-08,4655.3,4655.2,2.80813541]
[1756309620506,1e-08,4655.3,4655.2,11.23013541]
[1756309620714,1e-08,4655.3,4655.2,11.88925113]
[1756309621009,1e-08,4655.3,4655.2,8.11925113]
[1756309621309,1e-08,4655.3,4655.2,11.88925113]
[1756309623512,1e-08,4655.3,4655.2,11.88825113]
[1756309623680,1e-08,4655.3,4655.2,8.11925113]
[1756309623880,1e-08,4655.3,4655.2,7.45925113]
[1756309624085,1e-08,4655.3,4655.2,11.22825113]
[1756309624283,1e-08,4655.3,4655.2,7.45925113]
[1756309624487,1e-08,4655.3,4655.2,11.22825113]
[1756309624697,1e-08,4655.3,4655.2,7.45925113]
[1756309624906,1e-08,4655.3,4655.2,11.39140976]
[1756309625597,1e-08,4655.3,4655.2,12.05140976]
[1756309625993,1e-08,4655.3,4655.2,7.62240976]
[1756309626196,1e-08,4655.3,4655.2,12.05040976]
[1756309628415,1e-08,4655.3,4655.2,8.28240976]
[1756309628919,1e-08,4655.3,4655.2,12.05040976]
[1756309629119,1e-08,4655.3,4655.2,12.04940976]
[1756309629815,1e-08,4655.3,4655.2,8.28240976]
[1756309630011,1e-08,4655.3,4655.2,12.04940976]
[1756309630695,1e-08,4655.3,4655.2,11.94220976]
[1756309630895,1e-08,4655.3,4655.2,12.04940976]
[1756309631987,0.0014916,4656.1,4655.4,0.66]
[1756309632220,0.0014916,4656.1,4656.0,5.80776632]
[1756309632425,0.02,4657.8,4656.7,5.80744346]
[1756309632623,0.02,4657.8,4656.7,11.22544346]
[1756309632789,0.33614838,4657.5,4656.7,11.33264346]
[1756309632990,0.02,4657.8,4656.7,11.33264346]
[1756309634821,0.02,4657.8,4656.7,7.56664346]
[1756309635012,0.02,4657.8,4656.7,11.33264346]
[1756309635209,0.02,4657.8,4656.7,12.13918226]
[1756309635813,0.02,4657.8,4656.7,12.13818226]
[1756309636033,0.00777315,4656.8,4656.7,12.13818226]
[1756309636198,0.02,4657.8,4657.7,2.14698241]
[1756309636395,0.02,4657.8,4657.7,5.91198241]
[1756309636596,0.022,4657.8,4657.7,2.25418241]
[1756309636906,0.022,4657.8,4657.7,6.01918241]
[1756309637307,2.16647554,4658.8,4657.7,5.91198241]
[1756309637638,1.31771817,4658.7,4657.8,3.765]
[1756309637848,7.35308139,4658.5,4658.0,2.14680051]
[1756309637998,0.02,4658.8,4658.2,2.14671688]
[1756309638198,0.02,4658.8,4658.3,3.764]
[1756309638426,0.22055011,4658.8,4658.3,3.764]
[1756309638927,0.02,4658.8,4658.4,2.14664898]
[1756309639092,0.02,4658.8,4658.5,3.8712]
[1756309639296,0.02,4658.8,4658.7,2.14652156]
[1756309640339,1e-08,4658.8,4658.7,7.58718677]
[1756309640536,1e-08,4658.8,4658.7,7.56572156]
[1756309640838,1e-08,4658.8,4658.7,8.89852156]
[1756309641039,1e-08,4658.8,4658.7,9.00572156]
[1756309641206,1e-08,4658.8,4658.7,10.39015336]
[1756309641561,0.02,4659.8,4658.7,10.39015336]
[1756309641562,0.01920001,4659.8,4659.7,2.1460609]
[1756309641940,7.3222814,4660.7,4659.8,2.1460046]
[1756309642125,0.02,4660.8,4659.9,3.763]
[1756309642326,7.37308139,4660.8,4660.0,2.14591502]
[1756309642539,0.7709015,4660.7,4660.1,3.763]
[1756309642707,0.7709015,4660.7,4660.3,2.1457434]
[1756309642904,0.7709015,4660.7,4660.3,3.763]
[1756309643108,0.02,4660.8,4660.6,2.14561119]
[1756309643308,0.02,4660.8,4660.7,2.14560044]
[1756309644647,2.14560044,4660.7,4659.7,2.30386773]
[1756309644867,7.35308139,4660.6,4659.7,0.15781159]
[1756309645040,0.02,4660.8,4659.6,3.762]
[1756309645041,7.35308139,4660.5,4659.6,3.762]
[1756309645239,0.73530814,4660.4,4659.6,5.90810161]
[1756309645417,0.73530814,4660.4,4659.8,2.14600694]
[1756309645614,7.35308139,4659.9,4658.9,0.15890256]
[1756309645912,7.35308139,4659.9,4659.4,2.14619619]
[1756309646111,7.35308139,4659.9,4658.3,1.651]
[1756309646112,7.35308139,4659.9,4658.5,2.14661094]
[1756309646314,0.02,4660.8,4660.1,2.14584446]
[1756309646537,0.02,4660.8,4660.0,1.651]
[1756309646727,0.02,4660.8,4660.2,2.14583065]
[1756309646914,0.02,4660.8,4660.1,3.761]
[1756309647110,0.02,4660.8,4660.4,2.14572713]
[1756309647315,0.02,4660.8,4660.5,3.761]
[1756309647645,0.02,4660.8,4660.6,3.761]
[1756309648439,0.23654178,4660.8,4660.2,3.76]
[1756309648653,0.35591241,4660.8,4660.3,2.14574562]
[1756309648957,0.35591241,4660.8,4660.4,2.14571659]
[1756309649132,0.35591241,4660.8,4660.5,3.76]
[1756309650872,0.35591241,4660.8,4659.8,0.02]
[1756309650873,18.92598505,4660.6,4659.8,0.02]
[1756309651027,3.0,4660.4,4659.8,0.02]
[1756309651228,5.90478898,4660.3,4659.8,0.02]
[1756309651530,3.02,4660.8,4659.8,0.02]
[1756309651840,0.33598187,4660.2,4660.0,2.14590752]
[1756309652041,0.33598187,4660.2,4659.8,0.02]
[1756309652231,0.33598187,4660.2,4659.8,3.779]
[1756309652427,0.33598187,4660.2,4659.9,2.14593651]
[1756309652627,0.33598187,4660.2,4659.9,5.90493651]
[1756309652828,0.33598187,4660.2,4659.9,3.759]
[1756309653064,0.33598187,4660.2,4660.0,2.14591924]
[1756309653265,0.33598187,4660.2,4660.1,2.14587669]
[1756309653558,0.33598187,4660.2,4660.1,2.25307669]
[1756309654366,0.02,4660.8,4660.7,2.14560044]
[1756309654540,0.022,4660.8,4660.7,6.01180044]
[1756309654744,0.022,4660.8,4660.7,9.01180044]
[1756309654942,0.022,4660.8,4660.7,9.67180044]
[1756309655139,0.022,4660.8,4660.7,5.91280044]
[1756309655437,0.022,4660.8,4660.7,10.58951174]
[1756309656137,0.022,4660.8,4660.7,9.01080044]
[1756309656475,0.022,4660.8,4660.7,5.91280044]
[1756309656677,0.022,4660.8,4660.7,9.67080044]
[1756309657737,0.022,4660.8,4660.7,9.01080044]
[1756309657955,0.022,4660.8,4660.7,5.91280044]
[1756309658276,0.022,4660.8,4660.7,10.64174744]
[1756309659575,1e-08,4660.8,4660.7,10.64174744]
[1756309660368,1e-08,4660.8,4660.7,10.64074744]
[1756309661062,1e-08,4660.8,4660.7,6.88374744]
[1756309661255,1e-08,4660.8,4660.7,10.64074744]
[1756309662767,1e-08,4661.3,4661.2,5.80537029]
[1756309662975,0.0022115,4662.2,4661.5,0.66]
[1756309663150,0.0022115,4662.2,4662.1,2.14495613]
[1756309663354,0.0022115,4662.2,4662.1,6.00815613]
[1756309664561,0.0022115,4662.2,4662.1,6.66815613]
[1756309665172,0.0022115,4662.2,4662.1,2.91215613]
[1756309665366,0.0022115,4662.2,4662.1,6.68960569]
[1756309665576,0.0022115,4662.2,4662.1,10.17387425]
[1756309665786,0.0192,4662.8,4662.7,2.80468012]
[1756309666078,0.0192,4662.8,4662.7,11.31788012]
[1756309666379,1e-08,4662.8,4662.7,12.82536421]
[1756309667352,1e-08,4662.8,4662.7,12.82436421]
[1756309668642,1e-08,4662.8,4662.7,9.06936421]
[1756309668859,1e-08,4662.8,4662.7,12.82436421]
[1756309669269,1e-08,4663.8,4663.7,2.80422025]
[1756309669580,1e-08,4663.8,4663.7,11.48964228]
[1756309669881,1e-08,4663.8,4663.7,11.59684228]
[1756309670054,1e-08,4663.8,4663.7,7.84184228]
[1756309670376,1e-08,4663.8,4663.7,11.59584228]
[1756309670764,1e-08,4663.8,4663.7,10.65542025]
[1756309670945,1e-08,4663.8,4663.7,6.90142025]
[1756309671278,1e-08,4663.8,4663.7,11.31542025]
[1756309672150,0.003,4664.5,4664.4,5.80389846]
[1756309672151,1e-08,4664.5,4664.4,5.80389846]
[1756309672347,1e-08,4664.5,4664.4,9.55689846]
[1756309672546,1e-08,4664.5,4664.4,10.83418514]
[1756309673155,1e-08,4664.8,4664.7,2.80376058]
[1756309673360,1e-08,4664.8,4664.7,9.57819818]
[1756309673686,0.33557989,4666.0,4664.7,9.57819818]
[1756309673687,1e-08,4665.5,4665.4,2.14343893]
[1756309673848,1e-08,4665.5,4665.4,10.41376802]
[1756309674049,1e-08,4665.5,4665.4,10.39233364]
[1756309675169,1e-08,4665.5,4665.4,6.63933364]
[1756309675377,1e-08,4665.5,4665.4,10.39233364]
[1756309676252,1e-08,4665.5,4665.4,10.39133364]
[1756309676451,1e-08,4665.5,4665.4,5.91063893]
[1756309676686,1e-08,4665.5,4665.4,9.66263893]
[1756309678561,1e-08,4665.5,4665.4,5.41157363]
[1756309678765,1e-08,4665.5,4665.4,0.2681347]
[1756309679122,1e-08,4665.5,4665.4,0.1072]
[1756309679603,1e-08,4665.5,4664.9,0.1072]
[1756309679791,0.33556525,4665.5,4664.9,0.1072]
[1756309680325,2.14355737,4665.2,4664.9,0.1072]
[1756309680611,0.42869963,4665.1,4664.8,0.02]
[1756309680900,1.649,4665.4,4664.8,0.02]
[1756309681494,2.14353082,4665.2,4664.8,0.02]
[1756309681694,2.14364518,4665.0,4664.8,0.02]
[1756309681876,2.14364105,4665.0,4664.8,0.02]
[1756309682083,15.92598505,4664.9,4664.1,0.1072]
[1756309682285,1.59259851,4664.8,4663.4,0.1072]
[1756309682492,1.59259851,4664.8,4662.8,0.148]
[1756309682493,5.14380654,4664.6,4663.2,0.1072]
[1756309682655,15.92598505,4664.1,4662.8,0.02]
[1756309682856,1.59259851,4664.8,4663.6,0.1072]
[1756309683054,1.59259851,4664.8,4663.1,0.16080472]
[1756309683055,0.33565075,4665.0,4663.9,0.1072]
[1756309683283,0.33565075,4665.0,4663.7,0.1072]
[1756309683510,2.14396185,4664.3,4663.4,0.1072]
[1756309683662,1.649,4664.2,4663.0,0.1072]
[1756309683857,2.1441283,4663.9,4662.8,0.02]
[1756309684115,2.14422025,4663.7,4662.8,0.02]
[1756309684252,15.92598505,4663.6,4662.8,0.02]
[1756309684458,3.0,4663.5,4661.8,0.02]
[1756309684688,3.0,4663.3,4661.8,0.02]
[1756309684995,3.0,4663.1,4661.8,0.02]
[1756309685153,0.67934396,4663.0,4661.8,0.02]
[1756309685391,2.14465128,4662.8,4661.8,0.02]
[1756309685577,2.14472611,4662.6,4661.8,0.02]
[1756309685893,3.758,4662.5,4661.8,0.02]
[1756309686304,2.14486412,4662.3,4661.8,0.02]
[1756309686506,1.649,4662.3,4661.8,0.02]
[1756309687069,3.79386412,4662.3,4661.8,0.02]
[1756309687293,4.76362832,4662.3,4661.8,0.02]
[1756309687506,8.52262832,4662.3,4661.8,0.02]
[1756309687967,2.6187642,4662.3,4661.8,0.02]
[1756309688166,8.52362832,4662.3,4661.8,0.02]
[1756309688391,2.6187642,4662.3,4661.8,0.02]
[1756309688562,6.3787642,4662.3,4661.8,0.02]
[1756309688759,2.14504815,4661.9,4661.8,0.02]
[1756309688957,2.14504815,4661.9,4660.8,0.02]
[1756309688958,2.14509416,4661.8,4660.8,0.02]
[1756309689159,18.07118071,4661.6,4660.8,0.02]
[1756309689360,3.759,4661.7,4660.9,2.14550837]
[1756309689564,0.33590348,4661.6,4660.9,2.14550837]
[1756309689795,0.33590348,4661.6,4660.8,0.02]
[1756309690172,0.74539383,4661.6,4660.8,0.02]
[1756309690466,0.33510348,4661.6,4660.9,2.14550837]
[1756309690777,0.33510348,4661.6,4660.8,0.02]
[1756309690975,0.33510348,4661.6,4660.8,2.16553532]
[1756309691188,0.33510348,4661.6,4661.2,2.14536379]
[1756309692101,0.33510348,4661.6,4660.8,0.021]
[1756309692409,0.95941942,4661.6,4660.8,0.021]
[1756309692700,3.766,4661.5,4661.1,2.14539313]
[1756309692913,3.766,4661.5,4660.8,0.021]
[1756309694504,2.48032605,4661.6,4660.8,0.021]
[1756309694805,3.766,4661.5,4660.8,0.021]
[1756309694975,2.76991011,4661.4,4660.8,0.021]
[1756309695174,0.62463133,4661.4,4660.8,0.021]
[1756309696511,3.767,4661.4,4660.8,0.021]
[1756309697016,2.14532669,4661.3,4660.8,0.021]
[1756309697218,15.92598505,4660.9,4660.8,0.021]
[1756309697393,18.07149342,4660.9,4660.8,0.021]
[1756309697589,23.2147486,4660.9,4660.8,0.021]
[1756309697797,2.14573856,4660.4,4660.3,0.001]
[1756309698019,10.56073856,4660.4,4660.3,0.001]
[1756309698424,2.14596879,4659.9,4659.8,0.021]
[1756309698633,3.766,4659.9,4659.8,0.021]
[1756309698932,6.28856879,4659.9,4659.8,0.021]
[1756309699088,0.3766,4659.9,4659.8,0.021]
[1756309699284,3.767,4659.9,4659.8,0.021]
[1756309699480,5.91296879,4659.9,4659.8,0.021]
[1756309699727,8.91296879,4659.9,4659.8,0.021]
[1756309700228,8.91196879,4659.9,4659.8,0.021]
[1756309700383,5.14596879,4659.9,4659.8,0.021]
[1756309700588,3.766,4659.9,4659.8,0.021]
[1756309700910,1.65,4660.4,4659.8,0.021]
[1756309701231,3.768,4660.3,4659.8,0.021]
[1756309701814,1.65,4660.4,4659.8,0.021]
[1756309702020,0.33599153,4660.2,4659.8,0.021]
[1756309702187,0.79027709,4660.1,4659.8,0.021]
[1756309702815,3.77,4660.0,4659.8,0.021]
[1756309703220,0.79027709,4660.1,4659.8,0.021]
[1756309703387,0.33599153,4660.2,4659.8,0.021]
[1756309703589,3.769,4660.1,4659.8,0.021]
[1756309704031,0.33599153,4660.2,4659.8,0.021]
[1756309704389,0.33599153,4660.2,4659.9,6.79596879]
[1756309704589,0.02,4661.8,4660.0,0.66]
[1756309704888,0.02,4661.8,4661.6,2.14514306]
[1756309705093,0.02,4661.8,4661.7,2.14514018]
[1756309705386,0.02,4661.8,4660.8,2.1455498]
[1756309705587,0.02,4661.8,4660.4,3.0]
[1756309705822,0.02,4661.8,4661.7,2.14514018]
[1756309706028,0.02,4661.8,4660.2,0.66]
[1756309706358,2.145,4661.7,4660.8,2.14554008]
[1756309706642,0.3815,4661.6,4660.5,2.14567649]
[1756309706840,0.3815,4661.6,4660.6,2.14563704]
[1756309707137,0.3815,4661.6,4660.0,3.0]
[1756309707340,0.3815,4661.6,4660.2,2.14580216]
[1756309707635,0.63416441,4661.5,4659.8,0.021]
[1756309707992,0.63416441,4661.5,4659.9,2.14596879]
[1756309708193,1.67,4661.8,4661.0,2.14545092]
[1756309708432,3.784,4661.7,4659.8,0.021]
[1756309708635,3.784,4661.7,4660.6,2.14564582]
[1756309708836,3.784,4661.7,4660.7,2.14559885]
[1756309709034,1.67,4661.8,4659.8,0.021]
[1756309709236,3.784,4661.7,4660.7,2.14555637]
[1756309709391,2.14523696,4661.5,4660.3,2.14577786]
[1756309709597,15.92598505,4661.5,4659.8,0.021]
[1756309709908,2.14569744,4660.5,4659.8,0.021]
[1756309710212,2.14578941,4660.3,4659.8,0.021]
[1756309710425,0.75817894,4660.2,4659.8,0.021]
[1756309710792,3.786,4660.1,4659.8,0.021]
[1756309711409,1.09415641,4660.2,4660.0,0.001]
[1756309711728,3.785,4660.1,4660.0,0.001]
[1756309712098,0.33597747,4660.2,4660.0,0.001]
[1756309712495,0.33597747,4660.2,4660.1,2.14587669]
[1756309713398,0.33597747,4660.2,4660.1,2.80587669]
[1756309713619,1.65,4661.2,4661.0,2.14543443]
[1756309713938,3.785,4661.5,4660.9,2.14550837]
[1756309713939,0.33590139,4661.0,4660.9,2.14550837]
[1756309714508,0.33590139,4661.0,4660.1,0.66]
[1756309714698,0.33510139,4661.0,4660.9,2.14550837]
[1756309715097,0.002,4661.5,4660.9,2.14550837]
[1756309715331,0.002,4661.5,4661.0,2.14543919]
[1756309715624,0.002,4661.5,4660.6,0.1072]
[1756309715995,0.002,4661.5,4661.3,2.14528051]
[1756309716197,0.002,4661.5,4661.0,2.14543989]
[1756309716198,0.002,4661.5,4661.1,2.14537611]
[1756309716532,0.002,4661.5,4661.0,2.14545744]
[1756309716836,0.002,4661.5,4661.4,2.14527824]
[1756309717330,0.002,4661.5,4661.4,0.1072]
[1756309717495,3.781,4661.5,4660.7,2.14559026]
[1756309717697,3.781,4661.5,4660.8,2.1455472]
[1756309717894,0.002,4661.5,4660.8,2.1455368]
[1756309718119,0.002,4661.5,4660.6,0.1072]
[1756309718536,0.33588433,4661.4,4661.3,2.14532426]
[1756309718832,0.33588433,4661.4,4661.0,0.1072]
[1756309719132,0.33588433,4661.4,4661.1,2.14537207]
[1756309719331,0.74767276,4661.4,4660.5,0.1072]
[1756309719534,0.74767276,4661.4,4660.0,0.001]
[1756309719535,0.41178843,4661.4,4660.0,0.001]
[1756309719697,2.14532426,4661.3,4660.2,2.1458151]
[1756309719903,0.33592228,4660.7,4660.2,2.14582106]
[1756309720107,0.33592228,4660.7,4660.0,0.001]
[1756309720108,3.782,4660.6,4660.0,0.001]
[1756309720302,0.57679223,4660.5,4660.0,0.001]
[1756309720809,2.14577518,4660.4,4660.0,0.001]
[1756309721000,0.57679223,4660.5,4660.0,0.001]
[1756309721333,0.33596924,4660.2,4660.0,0.001]
[1756309721535,0.33596924,4660.2,4660.1,2.14587669]
[1756309721737,2.14514115,4661.7,4660.0,0.001]
[1756309721738,3.783,4661.9,4660.0,0.661]
[1756309721910,1.652,4662.0,4660.5,0.66]
[1756309722120,0.33590625,4661.2,4661.1,2.14541631]
[1756309722734,1.652,4662.0,4661.4,2.14527824]
[1756309722983,0.33786826,4661.5,4661.4,2.14527824]
[1756309723935,0.33786826,4661.5,4660.6,5.93463092]
[1756309724256,0.33786826,4661.5,4661.4,2.14527824]
[1756309725132,0.002,4661.5,4661.4,2.14527824]
[1756309725682,0.002,4661.5,4661.2,2.14534684]
[1756309725683,0.002,4661.5,4661.2,2.14533261]
[1756309725871,0.002,4661.5,4660.7,3.0]
[1756309725872,0.002,4661.5,4661.3,2.14528536]
[1756309726161,0.002,4661.5,4661.4,2.14527824]
[1756309726740,0.002,4661.5,4661.3,2.14531986]
[1756309727065,0.002,4661.5,4661.4,2.14527824]
[1756309727263,0.002,4661.5,4660.6,3.789]
[1756309727561,0.002,4661.5,4661.4,2.14527824]
[1756309729464,0.002,4661.5,4660.7,0.66]
[1756309729671,0.002,4661.5,4661.4,2.14527824]
[1756309732339,0.002,4661.5,4661.4,2.16673102]
[1756309732963,0.002,4661.5,4661.4,2.14527824]
[1756309733192,0.35586517,4661.8,4661.4,3.12748298]
[1756309733339,1e-08,4662.0,4661.9,2.80504815]
[1756309733535,1e-08,4662.0,4661.9,9.60049863]
[1756309733767,1.9857726,4664.9,4663.7,2.14422025]
[1756309733970,1.65,4664.9,4663.7,2.14422025]
[1756309734880,1.65,4664.9,4663.7,2.25142025]
[1756309736453,0.10691522,4666.2,4663.7,2.25142025]
[1756309736454,1.65,4665.7,4663.7,6.62129119]
[1756309736654,0.10691522,4666.2,4664.7,2.14376058]
[1756309736874,2.14293558,4666.5,4664.7,5.93619818]
[1756309737205,2.16329615,4665.8,4664.7,6.02196058]
[1756309737357,2.14330869,4665.7,4664.7,2.25096058]
[1756309737561,0.02,4665.8,4664.7,2.25096058]
[1756309739067,2.14331133,4665.7,4664.7,2.25096058]
[1756309739257,0.0192,4664.8,4664.7,3.8782]
[1756309739452,0.0192,4664.8,4664.4,1.65]
[1756309739951,0.0192,4664.8,4664.7,2.25096058]
[1756309740159,0.0192,4664.8,4664.7,0.1072]
[1756309740787,0.0192,4664.8,4664.4,2.14388852]
[1756309741401,0.0192,4664.8,4664.7,2.14376058]
[1756309741557,0.0192,4664.8,4664.6,2.14379799]
[1756309741961,0.0192,4664.8,4664.3,2.14390478]
[1756309741962,0.0192,4664.8,4664.4,2.14389846]
[1756309742261,0.0192,4664.8,4664.2,0.1072]
[1756309742581,0.0192,4664.8,4664.5,2.14384031]
[1756309742780,0.0192,4664.8,4664.2,0.1072]
[1756309742980,0.33562479,4664.7,4664.5,2.14383074]
[1756309743294,0.33562479,4664.7,4664.4,2.1438975]
[1756309743499,0.33562479,4664.7,4664.5,0.1072]
[1756309743791,0.33562479,4664.7,4664.6,2.14380654]
[1756309744572,0.33562479,4664.7,4664.5,3.8762]
[1756309744573,0.33562479,4664.7,4664.5,6.02003554]
[1756309744761,0.33562479,4664.7,4664.5,2.25103554]
[1756309744962,0.33562479,4664.7,4664.6,2.14380654]
[1756309745511,0.33562479,4664.7,4664.6,3.0673961]
[1756309745680,0.0192,4664.8,4664.7,2.80376058]
[1756309745881,0.0192,4664.8,4664.7,6.57176058]
[1756309746583,0.0192,4664.8,4664.7,9.57076058]
[1756309748006,0.0192,4664.8,4664.7,9.56976058]
[1756309748765,0.0192,4664.8,4664.6,0.1072]
[1756309749312,0.0192,4664.8,4664.6,0.1082]
[1756309749693,0.0212,4664.8,4664.6,2.25199991]
[1756309750017,0.0212,4664.8,4664.7,0.5]
[1756309750379,0.23768133,4664.8,4664.7,0.5]
[1756309750581,0.0212,4664.8,4664.7,0.5]
[1756309751919,0.0212,4664.8,4664.7,2.64376058]
[1756309752085,0.0212,4664.8,4664.7,6.40376058]
[1756309752716,0.0212,4664.8,4664.7,6.51096058]
[1756309752890,0.0212,4664.8,4664.7,9.51096058]
[1756309753212,0.0212,4664.8,4664.7,10.67654147]
[1756309753588,0.0212,4664.8,4664.7,11.33654147]
[1756309754605,0.0212,4664.8,4664.7,7.57654147]
[1756309754809,0.0212,4664.8,4664.7,10.17096058]
[1756309755645,0.0212,4664.8,4664.7,2.64376058]
[1756309756940,0.0212,4664.8,4664.7,0.5]
[1756309758744,0.0212,4664.8,4664.6,0.001]
[1756309758745,5.14376058,4664.7,4664.6,0.001]
[1756309758945,7.261708,4664.7,4664.6,0.001]
[1756309759153,11.032708,4664.7,4664.6,0.001]
[1756309759317,7.261708,4664.7,4664.6,0.001]
[1756309760045,2.14399039,4664.2,4664.1,0.001]
[1756309760338,7.56499039,4664.2,4664.1,0.001]
[1756309760504,8.83588139,4664.2,4664.1,0.001]
[1756309761310,8.83488139,4664.2,4664.1,0.001]
[1756309761512,8.83488139,4664.2,4663.6,0.001]
[1756309761513,9.690891,4664.2,4663.6,0.001]
[1756309761712,5.14422025,4663.7,4663.6,0.001]
[1756309762020,6.3507194,4663.7,4663.6,0.001]
[1756309762529,2.14458813,4662.9,4662.8,0.02]
[1756309762707,10.56558813,4662.9,4662.8,0.02]
[1756309762913,10.56558813,4662.9,4661.8,0.02]
[1756309762914,0.66,4662.7,4661.8,0.02]
[1756309763112,17.40156175,4661.9,4661.8,0.02]
[1756309763335,13.95470186,4661.9,4661.8,0.02]
[1756309763520,8.03365371,4661.9,4661.8,0.02]
[1756309763723,10.56924815,4661.9,4661.8,0.02]
[1756309764136,1.649,4662.8,4661.8,0.02]
[1756309764443,3.776,4662.5,4661.8,0.02]
[1756309764639,2.14498942,4662.1,4661.8,0.02]
[1756309764807,3.777,4662.0,4661.8,0.02]
[1756309765237,2.14492398,4662.2,4661.8,0.02]
[1756309765536,1.649,4662.8,4661.8,0.02]
[1756309765722,3.777,4663.2,4662.0,0.1072]
[1756309765910,3.777,4663.2,4662.2,2.14488003]
[1756309766114,3.777,4663.2,4662.0,0.1072]
[1756309766447,3.777,4663.1,4662.1,2.14495185]
[1756309766645,3.79333962,4663.5,4662.5,2.14473026]
[1756309766646,1.649,4663.5,4662.5,2.14473026]
[1756309766944,1.649,4663.5,4662.2,2.14488677]
[1756309766945,7.15532385,4663.4,4662.4,2.14477252]
[1756309767113,3.776,4663.3,4662.0,0.1072]
[1756309767314,3.776,4663.3,4662.4,2.14479067]
[1756309767515,3.776,4663.3,4662.0,0.1072]
[1756309767945,3.37932385,4663.4,4662.0,0.1072]
[1756309768147,3.775,4663.2,4662.5,2.14473873]
[1756309768447,0.33577327,4663.1,4662.1,2.14494187]
[1756309768648,0.33577327,4663.1,4662.0,0.1072]
[1756309768809,0.33577327,4663.1,4662.3,2.14485548]
[1756309769009,0.33577327,4663.1,4662.2,2.14490805]
[1756309769221,0.67580572,4663.0,4662.2,2.14490805]
[1756309769946,2.82034899,4663.0,4662.0,2.2521949]
[1756309770440,0.67580572,4663.0,4662.0,0.1072]
[1756309770659,3.77,4662.9,4662.3,2.14483511]
[1756309770843,3.77,4662.9,4662.1,2.1449136]
[1756309771336,3.77,4662.9,4662.2,2.14490725]
[1756309771739,3.77,4662.9,4662.0,2.14500214]
[1756309771955,3.77,4662.9,4661.8,0.021]
[1756309771956,0.33577327,4663.1,4662.2,2.1449034]
[1756309772259,0.33577327,4663.1,4662.3,2.14485298]
[1756309772462,0.71963384,4663.1,4662.0,2.14499139]
[1756309772636,3.768,4663.0,4662.0,2.14499139]
[1756309772835,3.768,4663.0,4661.8,0.1282]
[1756309773036,4.26704662,4663.0,4662.2,2.14487906]
[1756309773238,6.41158992,4663.0,4661.8,0.1282]
[1756309773438,4.26704662,4663.0,4661.8,2.16609053]
[1756309773662,4.26704662,4663.0,4662.1,2.14491739]
[1756309773844,4.26704662,4663.0,4662.2,2.14489911]
[1756309774042,4.47911379,4662.9,4662.3,2.14484429]
[1756309774238,4.47911379,4662.9,4662.0,2.14499602]
[1756309774239,4.47911379,4662.9,4662.0,2.14495821]
[1756309774558,3.765,4662.8,4662.0,2.14495971]
[1756309775067,3.765,4662.8,4661.9,2.145042]
[1756309775371,2.14504815,4661.9,4661.8,0.021]
[1756309775549,10.56004815,4661.9,4661.8,0.021]
[1756309775937,8.415,4661.9,4660.8,0.021]
[1756309776267,35.14509416,4661.8,4660.8,0.021]
[1756309776432,17.40179184,4661.4,4660.8,0.021]
[1756309776635,23.31304702,4661.4,4660.8,0.021]
[1756309777051,23.39910602,4661.4,4660.8,0.021]
[1756309777244,2.14550837,4660.9,4660.8,0.021]
[1756309777439,10.56350837,4660.9,4660.8,0.021]
[1756309777977,10.64957437,4660.9,4660.8,0.021]
[1756309778186,11.6763673,4660.9,4660.8,0.021]
[1756309778491,2.14587669,4660.1,4660.0,0.001]
[1756309778650,5.91287669,4660.1,4660.0,0.001]
[1756309778977,8.91287669,4660.1,4660.0,0.001]